{"text_format":"1","workbook":"xlsx","n_sheets":1,"sheets":["Mapping"],"not_rendered":{"charts":1,"images":5,"macros":1,"external_links":0,"defined_names":31,"comments":0,"pivot_tables":0},"unopened":[],"bounds":{"document_bytes":16777216,"sheet_cells":100000,"rows_first":2000,"rows_last":500,"rows_between":2000,"halvings":0,"cell_chars":16384,"cell_head_chars":4096},"cells_cut":0,"cells_raw":0,"read":"whole","date_system":"1900"}

{"sheet":"Mapping","index":0,"n_rows":225,"n_cols":60,"rows_kept":225,"cut":false,"hidden":false,"merged":[[14,4,14,5],[14,6,14,13],[3,1,3,15],[31,2,31,3],[32,2,32,3],[6,6,6,9],[15,2,15,3],[16,2,16,3],[98,12,98,17],[112,13,112,16],[83,4,83,8],[41,4,41,15],[96,12,96,13],[97,12,97,17],[70,4,70,15],[47,14,47,19],[48,14,48,19],[49,14,49,19],[50,14,50,19],[60,7,60,9],[44,4,44,12],[45,4,45,12],[46,4,46,12],[47,4,47,12],[37,2,37,3],[38,2,38,3],[16,5,16,13],[15,5,15,13],[29,2,29,3],[30,2,30,3],[36,2,36,3],[33,2,33,3],[34,2,34,3],[35,2,35,3],[178,5,178,6],[175,3,175,15],[68,4,68,15],[61,10,61,12],[1,1,1,15],[2,1,2,15],[5,1,5,15],[4,1,4,15],[9,2,9,3],[9,4,9,15],[10,4,10,15],[14,2,14,3],[6,2,6,5],[40,4,40,15],[69,4,69,15],[43,5,43,12]]}
[]
[null,"Welcome to \"Create Your Own Overall Similarities (OS) Perceptual Map\""]
[null,"Follow the Steps in Yellow",null,null,null,null,null,null,null,null,null,null,null,null,null,null,null,null,null,null,null,null,null,null,null,{"$f":"IF(D$18<>\"\",D$18,\"\")","v":"Coke"},{"$f":"IF(D19<>\"\",D19,\"\")","v":"Pepsi"},{"$f":"IF(Z3<>\"\",1,0)","v":1},{"$f":"IF(AA3<>\"\",1,0)","v":1},{"$f":"+AC3+AB3","v":2},{"$f":"IF(D$20<>\"\",D$20,\"\")","v":"Sprite"},{"$f":"IF(D22<>\"\",D22,\"\")","v":"Pepsi Max"},{"$f":"IF(AE3<>\"\",1,0)","v":1},{"$f":"IF(AF3<>\"\",1,0)","v":1},{"$f":"+AH3+AG3","v":2},{"$f":"IF(D$22<>\"\",D$22,\"\")","v":"Pepsi Max"},{"$f":"IF(D29<>\"\",D29,\"\")","v":""},{"$f":"IF(AJ3<>\"\",1,0)","v":1},{"$f":"IF(AK3<>\"\",1,0)","v":0},{"$f":"+AM3+AL3","v":1}]
[null,"Please note that there is a YouTube video available on How to Use this Template",null,null,null,null,null,null,null,null,null,null,null,null,null,null,null,null,null,null,null,null,null,null,null,"Coke","Sprite",{"$f":"IF(Z4<>\"\",1,0)","v":1},{"$f":"IF(AA4<>\"\",1,0)","v":1},{"$f":"+AC4+AB4","v":2},"Sprite","",{"$f":"IF(AE4<>\"\",1,0)","v":1},{"$f":"IF(AF4<>\"\",1,0)","v":0},{"$f":"+AH4+AG4","v":1},{"$f":"IF(D$23<>\"\",D$23,\"\")","v":""},{"$f":"IF(D24<>\"\",D24,\"\")","v":""},{"$f":"IF(AJ4<>\"\",1,0)","v":0},{"$f":"IF(AK4<>\"\",1,0)","v":0},{"$f":"+AM4+AL4","v":0}]
[null,"Only enter data/information in the Blue cells",null,null,null,null,null,null,null,null,null,null,null,null,null,null,null,null,null,null,null,null,null,null,null,"Coke","Diet Coke",1,1,2,"Sprite","",1,0,1,"","",0,0,0]
[null,"The Grey cells provide additional information",null,null,null,null,null,null,null,null,null,null,null,null,null,null,null,null,null,null,null,null,null,null,null,"Coke","Pepsi Max",1,1,2,"Sprite","",1,0,1,"","",0,0,0]
[null,null,"For more information on Perceptual Maps visit:",null,null,null," www.perceptualmaps.com",null,null,null,"Or email: geoff@perceptualmaps.com",null,null,null,null,null,null,null,null,null,null,null,null,null,null,"Coke","",1,0,1,"Sprite","",1,0,1,"","",0,0,0]
[null,"",null,null,null,null,null,null,null,null,null,null,null,null,null,null,null,null,null,null,null,null,null,null,null,"Coke","",1,0,1,"Sprite","",1,0,1,"","",0,0,0]
[null,null,null,null,null,null,null,null,null,null,null,null,null,null,null,null,null,null,null,null,null,null,null,null,null,"Coke","",1,0,1,"Sprite","",1,0,1,"","",0,0,0]
[null,"STEP ONE","Enter the Title of Your Map",null,"Soft Drink Year 1",null,null,null,null,null,null,null,null,null,null,null,null,null,null,null,null,null,null,null,null,"Coke","",1,0,1,"Sprite","",1,0,1,{"$f":"IF(D$24<>\"\",D$24,\"\")","v":""},{"$f":"IF(D25<>\"\",D25,\"\")","v":""},0,0,0]
[null,null,null,null,"(This is an example only. Simply type over this map title.)",null,null,null,null,null,null,null,null,null,null,null,null,null,null,null,null,null,null,null,null,"Coke","",1,0,1,{"$f":"IF(D$21<>\"\",D$21,\"\")","v":"Diet Coke"},{"$f":"IF(D22<>\"\",D22,\"\")","v":"Pepsi Max"},1,1,2,{"$f":"IF(D$24<>\"\",D$24,\"\")","v":""},{"$f":"IF(D26<>\"\",D26,\"\")","v":""},0,0,0]
[null,null,null,null,null,null,null,null,null,null,null,null,null,null,null,null,null,null,null,null,null,null,null,null,null,"Coke","",1,0,1,"Diet Coke","",1,0,1,{"$f":"IF(D$24<>\"\",D$24,\"\")","v":""},{"$f":"IF(D27<>\"\",D27,\"\")","v":""},0,0,0]
[null,null,null,null,null,null,null,null,null,null,null,null,null,null,null,null,null,null,null,null,null,null,null,null,null,"Coke","",1,0,1,"Diet Coke","",1,0,1,{"$f":"IF(D$24<>\"\",D$24,\"\")","v":""},{"$f":"IF(D28<>\"\",D28,\"\")","v":""},0,0,0]
[null,null,null,null,null,null,null,null,null,null,null,null,null,null,null,null,null,null,null,null,null,null,null,null,null,{"$f":"IF(D$19<>\"\",D$19,\"\")","v":"Pepsi"},{"$f":"IF(D20<>\"\",D20,\"\")","v":"Sprite"},1,1,2,"Diet Coke","",1,0,1,{"$f":"IF(D$24<>\"\",D$24,\"\")","v":""},{"$f":"IF(D29<>\"\",D29,\"\")","v":""},0,0,0]
[null,"STEP TWO","Enter Brands Below",null,"STEP THREE ==>",null,"Compare EACH pair of brands below    Note: If you have less than 12 brands some blanks cells will appear - only enter the data for the pairs",null,null,null,null,null,null,null,null,null,null,null,null,null,null,null,null,null,null,"Pepsi","Diet Coke",1,1,2,"Diet Coke","",1,0,1,{"$f":"IF(D$25<>\"\",D$25,\"\")","v":""},{"$f":"IF(D26<>\"\",D26,\"\")","v":""},0,0,0]
[null,null,"You may enter up to 12 brands",null,null,"Compare using a 1-9 scale, where 1= Virtually the Same and 9 = Virtually Opposites",null,null,null,null,null,null,null,null,null,null,null,null,null,null,null,null,null,null,null,"Pepsi","Pepsi Max",1,1,2,"Diet Coke","",1,0,1,{"$f":"IF(D$25<>\"\",D$25,\"\")","v":""},{"$f":"IF(D27<>\"\",D27,\"\")","v":""},0,0,0]
[null,null,"Some examples provided, simply type over the top to enter your own brands",null,null,"Please note that the brand pair sets below should update automatically when you enter the brands in                  Step Two (left).  If not, press F9 at the top of your keyboard to recalculate the spreadsheet. ",null,null,null,null,null,null,null,null,null,null,null,null,null,null,null,null,null,null,null,"Pepsi","",1,0,1,"Diet Coke","",1,0,1,{"$f":"IF(D$25<>\"\",D$25,\"\")","v":""},{"$f":"IF(D28<>\"\",D28,\"\")","v":""},0,0,0]
[null,null,1,"Coke",null,{"$f":"IF(AD3=2,Z3,\"\")","v":"Coke"},{"$f":"IF(AD3=2,AA3,\"\")","v":"Pepsi"},1,{"$f":"IF(AI3=2,AE3,\"\")","v":"Sprite"},{"$f":"IF(AI3=2,AF3,\"\")","v":"Pepsi Max"},6,{"$f":"IF(AN3=2,AJ3,\"\")","v":""},{"$f":"IF(AN3=2,AK3,\"\")","v":""},null,null,null,null,null,null,null,null,null,null,null,null,"Pepsi","",1,0,1,"Diet Coke","",1,0,1,{"$f":"IF(D$25<>\"\",D$25,\"\")","v":""},{"$f":"IF(D29<>\"\",D29,\"\")","v":""},0,0,0]
[null,null,2,"Pepsi",null,{"$f":"IF(AD4=2,Z4,\"\")","v":"Coke"},{"$f":"IF(AD4=2,AA4,\"\")","v":"Sprite"},9,{"$f":"IF(AI4=2,AE4,\"\")","v":""},{"$f":"IF(AI4=2,AF4,\"\")","v":""},null,{"$f":"IF(AN4=2,AJ4,\"\")","v":""},{"$f":"IF(AN4=2,AK4,\"\")","v":""},null,null,null,null,null,null,null,null,null,null,null,null,"Pepsi","",1,0,1,{"$f":"IF(D$22<>\"\",D$22,\"\")","v":"Pepsi Max"},{"$f":"IF(D23<>\"\",D23,\"\")","v":""},1,0,1,{"$f":"IF(D$26<>\"\",D$26,\"\")","v":""},{"$f":"IF(D27<>\"\",D27,\"\")","v":""},0,0,0]
[null,null,3,"Sprite",null,"Coke","Diet Coke",3,"","",null,"","",null,null,null,null,null,null,null,null,null,null,null,null,"Pepsi","",1,0,1,"Pepsi Max","",1,0,1,{"$f":"IF(D$26<>\"\",D$26,\"\")","v":""},{"$f":"IF(D28<>\"\",D28,\"\")","v":""},0,0,0]
[null,null,4,"Diet Coke",null,"Coke","Pepsi Max",4,"","",null,"","",null,null,null,null,null,null,null,null,null,null,null,null,"Pepsi","",1,0,1,"Pepsi Max","",1,0,1,{"$f":"IF(D$26<>\"\",D$26,\"\")","v":""},{"$f":"IF(D29<>\"\",D29,\"\")","v":""},0,0,0]
[null,null,5,"Pepsi Max",null,"","",null,"","",null,"","",null,null,null,null,null,null,null,null,null,null,null,null,"Pepsi","",1,0,1,"Pepsi Max","",1,0,1,{"$f":"IF(D$27<>\"\",D$27,\"\")","v":""},{"$f":"IF(D28<>\"\",D28,\"\")","v":""},0,0,0]
[null,null,6,null,null,"","",null,"","",null,"","",null,null,null,null,null,null,null,null,null,null,null,null,"Pepsi","",1,0,1,"Pepsi Max","",1,0,1,{"$f":"IF(D$27<>\"\",D$27,\"\")","v":""},{"$f":"IF(D29<>\"\",D29,\"\")","v":""},0,0,0]
[null,null,7,null,null,"","",null,"","",null,"","",null,null,null,null,null,null,null,null,null,null,null,null,{"$f":"IF(D$20<>\"\",D$20,\"\")","v":"Sprite"},{"$f":"IF(D21<>\"\",D21,\"\")","v":"Diet Coke"},1,1,2,"Pepsi Max","",1,0,1,{"$f":"IF(D$28<>\"\",D$28,\"\")","v":""},{"$f":"IF(D29<>\"\",D29,\"\")","v":""},0,0,0]
[null,null,8,null,null,"","",null,"","",null,"",""]
[null,null,9,null,null,"","",null,"Diet Coke","Pepsi Max",1.25,"",""]
[null,null,10,null,null,"","",null,"","",null,"",""]
[null,null,11,null,null,"","",null,"","",null,"",""]
[null,null,12,null,null,"Pepsi","Sprite",7,"","",null,"",""]
[null,null,"Compare using a 1-9 scale",null,null,"Pepsi","Diet Coke",5,"","",null,"",""]
[null,null,"1 = Virtually the same",null,null,"Pepsi","Pepsi Max",2.5,"","",null,"",""]
[null,null,"2 = Quite similar",null,null,"","",null,"","",null,"",""]
[null,null,"3 = Reasonably similar",null,null,"","",null,"","",null,"",""]
[null,null,"4 = Somewhat similar",null,null,"","",null,"","",null,"",""]
[null,null,"5 = Neither (or unsure)",null,null,"","",null,"","",null,"",""]
[null,null,"6 = Somewhat dissimilar",null,null,"","",null,"","",null,"",""]
[null,null,"7 = Reasonably dissimilar",null,null,"","",null,"","",null,"",""]
[null,null,"8 = Quite dissimilar",null,null,"","",null,"","",null,"",""]
[null,null,"9 = Virtually opposites",null,null,"Sprite","Diet Coke",5,"","",null,"",""]
[]
[]
[]
[]
[null,null,null,null,null,"Important Note for Apple Mac users"]
[null,null,null,"STEP FOUR","Ensure that your spreadsheet has the 'Solver add-in' loaded"]
[null,null,null,null,"In the top menu of Excel click \"File\" then select \"Options\" and then select \"Add-Ins\""]
[null,null,null,null,"Then click 'Go' next to 'Manage Excel Add-ins' and select the 'Solver Add-in' (as shown below)"]
[null,"STEP FIVE",null,"Follow the sequence as shown","Please note that these options are standard with every version of Excel, including the student version",null,null,null,null,null,null,null,null,null,"ATTENTION APPLE MAC USERS!!!"]
[null,null,null,null,null,null,null,null,null,null,null,null,null,null,"Do not follow the instructions in Step Four"]
[null,null,null,null,null,null,null,null,null,null,null,null,null,null,"Instead, select 'Tools', then 'Add-ins' and then 'Solver'"]
[null,null,null,null,null,null,null,null,null,null,null,null,null,null,"You will also need to follow Step Six below"]
[]
[]
[]
[]
[]
[]
[]
[]
[]
[null,null,null,null,null,null,null,"Part C: Select Go"]
[null,null,null,"Part A: Select Options",null,null,null,null,null,null,"Part D: Tick Solver Add-in",null,null,null,null,null,null,null,null,null,null,null,null,null,null,null,null,null,null,null,null,null,null,null,{"$f":"+AH63","v":"Coke"},{"$f":"+AH64","v":"Pepsi"},{"$f":"+AH65","v":"Sprite"},{"$f":"+AH66","v":"Diet Coke"},{"$f":"+AH67","v":"Pepsi Max"},{"$f":"+AH68","v":""},{"$f":"+AH69","v":""},{"$f":"+AH70","v":""},{"$f":"+AH71","v":""},{"$f":"+AH72","v":""},{"$f":"+AH73","v":""},{"$f":"+AH74","v":""}]
[null,null,null,null,"Part B: Select Add-ins",null,null,null,null,null,null,null,null,null,null,null,null,null,null,null,null,null,null,null,null,null,null,null,null,3,3,null,1,{"$f":"IF(D18=\"\",\"\",+D18)","v":"Coke"},0]
[null,null,null,null,null,null,null,null,null,null,null,null,null,null,null,null,null,null,null,null,null,null,null,null,null,null,null,null,null,{"$f":"IF($AI64=\"\",0,+$AI64)","v":1},{"$f":"IF($AI64=\"\",0,0)","v":0},null,{"$f":"+AG63+1","v":2},"Pepsi",{"$f":"+H18","v":1},0]
[null,null,null,null,null,null,null,null,null,null,null,null,null,null,null,null,null,null,null,null,null,null,null,null,null,null,null,null,null,{"$f":"IF($AI65=\"\",0,0)","v":0},{"$f":"IF($AI65=\"\",0,+$AI65)","v":9},null,{"$f":"+AG64+1","v":3},"Sprite",{"$f":"+H19","v":9},{"$f":"+H29","v":7},0]
[null,null,null,null,null,null,null,null,null,null,null,null,null,null,null,null,null,null,null,null,null,null,null,null,null,null,null,null,null,{"$f":"IF($AI66=\"\",0,+$AI66)","v":3},{"$f":"IF($AI66=\"\",0,0)","v":0},null,4,"Diet Coke",3,{"$f":"+H30","v":5},{"$f":"+H39","v":5},0]
[null,null,null,null,null,null,null,null,null,null,null,null,null,null,null,null,null,null,null,null,null,null,null,null,null,null,null,null,null,{"$f":"IF($AI67=\"\",0,0)","v":0},{"$f":"IF($AI67=\"\",0,+$AI67)","v":4},null,5,"Pepsi Max",4,2.5,{"$f":"+K18","v":6},{"$f":"+K26","v":1.25},0]
[null,null,null,null,null,null,null,null,null,null,null,null,null,null,null,null,null,null,null,null,null,null,null,null,null,null,null,null,null,{"$f":"IF($AI68=\"\",0,+$AI68)","v":0},{"$f":"IF($AI68=\"\",0,0)","v":0},null,6,"",0,0,{"$f":"+K19","v":0},{"$f":"+K27","v":0},{"$f":"+K34","v":0},0]
[null,null,null,"STEP FIVE","IMPORTANT: Save the spreadsheet and exit Excel, then reopen the spreadsheet",null,null,null,null,null,null,null,null,null,null,null,null,null,null,null,null,null,null,null,null,null,null,null,null,{"$f":"IF($AI69=\"\",0,0)","v":0},{"$f":"IF($AI69=\"\",0,+$AI69)","v":0},null,7,"",0,0,0,0,{"$f":"+K35","v":0},{"$f":"+N19","v":0},0]
[null,null,null,null,"Note: You need to save, exit and reopen Excel in order for the Solver Add-in to be loaded into the spreadsheet",null,null,null,null,null,null,null,null,null,null,null,null,null,null,null,null,null,null,null,null,null,null,null,null,{"$f":"IF($AI70=\"\",0,+$AI70)","v":0},{"$f":"IF($AI70=\"\",0,0)","v":0},null,8,"",0,0,0,0,0,{"$f":"+N20","v":0},{"$f":"+N25","v":0},0]
[null,null,null,null,"Solver should then appear under Data in the top menu, as shown below",null,null,null,null,null,null,null,null,null,null,null,null,null,null,null,null,null,null,null,null,null,null,null,null,{"$f":"IF($AI71=\"\",0,0)","v":0},{"$f":"IF($AI71=\"\",0,+$AI71)","v":0},null,9,"",0,0,0,0,0,0,{"$f":"+N26","v":0},{"$f":"+N30","v":0},0]
[null,null,null,null,null,null,null,null,null,null,null,null,null,null,null,null,null,null,null,null,null,null,null,null,null,null,null,null,null,{"$f":"IF($AI72=\"\",0,+$AI72)","v":0},{"$f":"IF($AI72=\"\",0,0)","v":0},null,10,"",0,0,0,0,0,0,0,{"$f":"+N31","v":0},{"$f":"+N34","v":0},0]
[null,null,null,null,null,null,null,null,null,null,null,null,null,null,null,null,null,null,null,null,null,null,null,null,null,null,null,null,null,{"$f":"IF($AI73=\"\",0,0)","v":0},{"$f":"IF($AI73=\"\",0,+$AI73)","v":0},null,11,"",0,0,0,0,0,0,0,0,{"$f":"+N35","v":0},{"$f":"+N37","v":0},0]
[null,null,null,null,null,null,null,null,null,null,null,null,null,null,null,null,null,null,null,null,null,null,null,null,null,null,null,null,null,{"$f":"IF($AI74=\"\",0,+$AI74)","v":0},{"$f":"IF($AI74=\"\",0,0)","v":0},null,12,"",0,0,0,0,{"$f":"+N18","v":0},0,0,0,0,{"$f":"+N38","v":0},{"$f":"+N39","v":0},0]
[]
[]
[]
[]
[null,null,null,"STEP SIX"]
[]
[]
[]
[]
[null,null,null,null,"Note: It may take up to 15 seconds to calculate"]
[]
[]
[null,null,null,null,null,null,null,null,null,null,null,null,null,null,null,null,null,null,null,null,null,null,null,null,null,null,null,null,null,null,null,null,null,null,{"$f":"SUM(AI63:AI86)","v":17},{"$f":"SUM(AJ63:AJ86)","v":14.5},11,1.25,0,0,0,0,0,0,0]
[]
[null,null,null,null,null,null,null,null,null,null,null,null,null,null,null,null,null,null,null,null,null,null,null,null,null,"Final points",null,null,null,null,null,null,null,null,null,null,{"$f":"+AF90","v":1},{"$f":"+AF91","v":1},{"$f":"+AF92","v":1},{"$f":"+AF93","v":1},{"$f":"+AF94","v":1},{"$f":"+AF95","v":0},{"$f":"+AF96","v":0},{"$f":"+AF97","v":0},{"$f":"+AF98","v":0},{"$f":"+AF99","v":0},{"$f":"+AF100","v":0},{"$f":"+AF101","v":0}]
[null,null,null,null,null,null,null,null,null,null,null,null,null,null,null,null,null,null,null,null,null,null,null,null,null,{"$f":"+IF($AF90=1,(AC90+$AD$117)*$AD$119,\"\")","v":2.2787314809741246},{"$f":"+IF($AF90=1,(AD90+$AD$117)*$AD$119,\"\")","v":0.8754903862396789},null,{"$f":"IF($AF90=1,AI90,\"\")","v":1.7055597177395556},{"$f":"IF($AF90=1,AJ90,\"\")","v":3.9478122830750993E-2},null,{"$f":"IF(D18=\"\",0,1)","v":1},null,{"$f":"+AH63","v":"Coke"},1.7055597177395556,3.9478122830750993E-2]
[null,null,null,null,null,null,null,null,null,null,null,null,null,null,null,null,null,null,null,null,null,null,null,null,null,{"$f":"+IF($AF91=1,(AC91+$AD$117)*$AD$119,\"\")","v":1.2221427470780009},{"$f":"+IF($AF91=1,(AD91+$AD$117)*$AD$119,\"\")","v":1.5241201749575253},null,{"$f":"IF($AF91=1,AI91,\"\")","v":0.45106179180369521},0.80960248488622533,null,{"$f":"IF(D19=\"\",0,1)","v":1},null,{"$f":"+AH64","v":"Pepsi"},0.45106179180369521,0.80960248488622533,{"$f":"IFERROR(IF(OR($AF91=0,AK$89=0),\"\",SQRT(($AI$90-$AI91)^2+($AJ$90-$AJ91)^2)),\"\")","v":1.4720246530573891}]
[null,null,null,null,null,null,null,null,null,null,null,null,null,null,null,null,null,null,null,null,null,null,null,null,null,0.84224031945521494,8,null,0,8.4984766404612735,null,1,null,"Sprite",0,8.4984766404612735,{"$f":"IFERROR(IF(OR($AF92=0,AK$89=0),\"\",SQRT(($AI$90-$AI92)^2+($AJ$90-$AJ92)^2)),\"\")","v":8.6292288109686375},{"$f":"IFERROR(IF(OR($AF92=0,AL$89=0),\"\",SQRT(($AI$91-$AI92)^2+($AJ$91-$AJ92)^2)),\"\")","v":7.7020933855864842},null,null,null,null,"`"]
[null,null,null,null,null,null,null,null,null,null,null,null,null,null,null,null,null,null,null,null,null,null,null,null,null,3.4860922285287157,4.1933257533260235,null,3.1390706998966986,3.9787758392264889,null,1,null,"Diet Coke",3.1390706998966986,3.9787758392264889,4.1920186347827482,{"$f":"IFERROR(IF(OR($AF93=0,AL$89=0),\"\",SQRT(($AI$91-$AI93)^2+($AJ$91-$AJ93)^2)),\"\")","v":4.1556048464510749},{"$f":"IFERROR(IF(OR($AF93=0,AM$89=0),\"\",SQRT(($AI$92-$AI93)^2+($AJ$92-$AJ93)^2)),\"\")","v":5.5028592741984879}]
[null,null,null,null,null,null,null,null,null,null,null,null,null,null,null,null,null,null,null,null,null,null,null,null,null,2.6359184104126476,3.595891947060748,null,2.1296511809332932,3.2694369575974154,null,1,null,"Pepsi Max",2.1296511809332932,3.2694369575974154,3.2576813293262794,2.9779939507052084,{"$f":"IFERROR(IF(OR($AF94=0,AM$89=0),\"\",SQRT(($AI$92-$AI94)^2+($AJ$92-$AJ94)^2)),\"\")","v":5.646084497899011},{"$f":"IFERROR(IF(OR($AF94=0,AN$89=0),\"\",SQRT(($AI$93-$AI94)^2+($AJ$93-$AJ94)^2)),\"\")","v":1.2337298789666633}]
[null,null,null,null,null,null,null,null,null,null,null,null,null,null,null,null,null,null,null,null,null,null,null,null,null,"","",null,"","",null,0,null,"",0,0,"","","",{"$f":"IFERROR(IF(OR($AF95=0,AN$89=0),\"\",SQRT(($AI$93-$AI95)^2+($AJ$93-$AJ95)^2)),\"\")","v":""},{"$f":"IFERROR(IF(OR($AF95=0,AO$89=0),\"\",SQRT(($AI$94-$AI95)^2+($AJ$94-$AJ95)^2)),\"\")","v":""}]
[null,null,null,null,null,null,null,null,null,null,null,null,null,null,null,null,null,null,null,null,null,null,null,null,null,"","",null,"","",null,0,null,"",0,0,"","","",{"$f":"IFERROR(IF(OR($AF96=0,AN$89=0),\"\",SQRT(($AI$93-$AI96)^2+($AJ$93-$AJ96)^2)),\"\")","v":""},{"$f":"IFERROR(IF(OR($AF96=0,AO$89=0),\"\",SQRT(($AI$94-$AI96)^2+($AJ$94-$AJ96)^2)),\"\")","v":""},{"$f":"IFERROR(IF(OR($AF96=0,AP$89=0),\"\",SQRT(($AI$95-$AI96)^2+($AJ$95-$AJ96)^2)),\"\")","v":""}]
[null,null,null,null,null,null,null,null,null,null,null,null,"STEP SEVEN ",null,"Copy Your Map to Word or PP",null,null,null,null,null,null,null,null,null,null,"","",null,"","",null,0,null,"",0,0,"","","","","",{"$f":"IFERROR(IF(OR($AF97=0,AP$89=0),\"\",SQRT(($AI$95-$AI97)^2+($AJ$95-$AJ97)^2)),\"\")","v":""},{"$f":"IFERROR(IF(OR($AF97=0,AQ$89=0),\"\",SQRT(($AI$96-$AI97)^2+($AJ$96-$AJ97)^2)),\"\")","v":""}]
[null,null,null,null,null,null,null,null,null,null,null,null,"To maintain the formatting of the map ",null,null,null,null,null,null,null,null,null,null,null,null,"","",null,"","",null,0,null,"",0,0,"","","","","","",{"$f":"IFERROR(IF(OR($AF98=0,AQ$89=0),\"\",SQRT(($AI$96-$AI98)^2+($AJ$96-$AJ98)^2)),\"\")","v":""},{"$f":"IFERROR(IF(OR($AF98=0,AR$89=0),\"\",SQRT(($AI$97-$AI98)^2+($AJ$97-$AJ98)^2)),\"\")","v":""}]
[null,null,null,null,null,null,null,null,null,null,null,null,"when you copy it:",null,null,null,null,null,null,null,null,null,null,null,null,"","",null,"","",null,0,null,"",0,0,"","","","","","","",{"$f":"IFERROR(IF(OR($AF99=0,AR$89=0),\"\",SQRT(($AI$97-$AI99)^2+($AJ$97-$AJ99)^2)),\"\")","v":""},{"$f":"IFERROR(IF(OR($AF99=0,AS$89=0),\"\",SQRT(($AI$98-$AI99)^2+($AJ$98-$AJ99)^2)),\"\")","v":""}]
[null,null,null,null,null,null,null,null,null,null,null,null,1,"Click on the edge of the map",null,null,null,null,null,null,null,null,null,null,null,"","",null,"","",null,0,null,"",0,0,"","","","","","","","",{"$f":"IFERROR(IF(OR($AF100=0,AS$89=0),\"\",SQRT(($AI$98-$AI100)^2+($AJ$98-$AJ100)^2)),\"\")","v":""},{"$f":"IFERROR(IF(OR($AF100=0,AT$89=0),\"\",SQRT(($AI$99-$AI100)^2+($AJ$99-$AJ100)^2)),\"\")","v":""}]
[null,null,null,null,null,null,null,null,null,null,null,null,null,"to highlight it",null,null,null,null,null,null,null,null,null,null,null,"","",null,"","",null,0,null,"",1.7376522738413958,6.5211367561724423,{"$f":"IFERROR(IF(OR($AF101=0,AK$89=0),\"\",SQRT(($AI$90-$AI101)^2+($AJ$90-$AJ101)^2)),\"\")","v":""},"","","","","","","","",{"$f":"IFERROR(IF(OR($AF101=0,AT$89=0),\"\",SQRT(($AI$99-$AI101)^2+($AJ$99-$AJ101)^2)),\"\")","v":""},{"$f":"IFERROR(IF(OR($AF101=0,AU$89=0),\"\",SQRT(($AI$100-$AI101)^2+($AJ$100-$AJ101)^2)),\"\")","v":""}]
[null,null,null,null,null,null,null,null,null,null,null,null,null,null,null,null,null,null,null,null,null,null,null,null,null,"","",null,"","",null,null,null,null,null,null,null,null,null,null,null,null,null,null,null,null,null,{"$f":"IFERROR(IF(OR($AF102=0,AV$89=0),\"\",SQRT(($AI$101-$AI102)^2+($AJ$101-$AJ102)^2)),\"\")","v":""}]
[null,null,null,null,null,null,null,null,null,null,null,null,2,"Select 'copy' from the above menu",null,null,null,null,null,null,null,null,null,null,null,"","",null,"","",null,null,null,null,null,null,null,null,null,null,null,null,null,null,null,null,null,{"$f":"IFERROR(IF(OR($AF103=0,AV$89=0),\"\",SQRT(($AI$101-$AI103)^2+($AJ$101-$AJ103)^2)),\"\")","v":""},{"$f":"IFERROR(IF(OR($AF103=0,AW$89=0),\"\",SQRT(($AI$102-$AI103)^2+($AJ$102-$AJ103)^2)),\"\")","v":""}]
[null,null,null,null,null,null,null,null,null,null,null,null,null,null,null,null,null,null,null,null,null,null,null,null,null,"","",null,"","",null,null,null,null,null,null,null,null,null,null,null,null,null,null,null,null,null,"",{"$f":"IFERROR(IF(OR($AF104=0,AW$89=0),\"\",SQRT(($AI$102-$AI104)^2+($AJ$102-$AJ104)^2)),\"\")","v":""},{"$f":"IFERROR(IF(OR($AF104=0,AX$89=0),\"\",SQRT(($AI$103-$AI104)^2+($AJ$103-$AJ104)^2)),\"\")","v":""}]
[null,null,null,null,null,null,null,null,null,null,null,null,3,"Go to your Word or P/Point document",null,null,null,null,null,null,null,null,null,null,null,"","",null,"","",null,null,null,null,null,null,null,null,null,null,null,null,null,null,null,null,null,"","",{"$f":"IFERROR(IF(OR($AF105=0,AX$89=0),\"\",SQRT(($AI$103-$AI105)^2+($AJ$103-$AJ105)^2)),\"\")","v":""},{"$f":"IFERROR(IF(OR($AF105=0,AY$89=0),\"\",SQRT(($AI$104-$AI105)^2+($AJ$104-$AJ105)^2)),\"\")","v":""}]
[null,null,null,null,null,null,null,null,null,null,null,null,null,null,null,null,null,null,null,null,null,null,null,null,null,"","",null,"","",null,null,null,null,null,null,null,null,null,null,null,null,null,null,null,null,null,"","","",{"$f":"IFERROR(IF(OR($AF106=0,AY$89=0),\"\",SQRT(($AI$104-$AI106)^2+($AJ$104-$AJ106)^2)),\"\")","v":""},{"$f":"IFERROR(IF(OR($AF106=0,AZ$89=0),\"\",SQRT(($AI$105-$AI106)^2+($AJ$105-$AJ106)^2)),\"\")","v":""}]
[null,null,null,null,null,null,null,null,null,null,null,null,4,"Select 'paste', then 'paste special'",null,null,null,null,null,null,null,null,null,null,null,"","",null,"","",null,null,null,null,null,null,null,null,null,null,null,null,null,null,null,null,null,"","","","",{"$f":"IFERROR(IF(OR($AF107=0,AZ$89=0),\"\",SQRT(($AI$105-$AI107)^2+($AJ$105-$AJ107)^2)),\"\")","v":""},{"$f":"IFERROR(IF(OR($AF107=0,BA$89=0),\"\",SQRT(($AI$106-$AI107)^2+($AJ$106-$AJ107)^2)),\"\")","v":""}]
[null,null,null,null,null,null,null,null,null,null,null,null,null,"and choose 'picture'.",null,null,null,null,null,null,null,null,null,null,null,"","",null,"","",null,null,null,null,null,null,null,null,null,null,null,null,null,null,null,null,null,"","","","","",{"$f":"IFERROR(IF(OR($AF108=0,BA$89=0),\"\",SQRT(($AI$106-$AI108)^2+($AJ$106-$AJ108)^2)),\"\")","v":""},{"$f":"IFERROR(IF(OR($AF108=0,BB$89=0),\"\",SQRT(($AI$107-$AI108)^2+($AJ$107-$AJ108)^2)),\"\")","v":""}]
[null,null,null,null,null,null,null,null,null,null,null,null,null,null,null,null,null,null,null,null,null,null,null,null,null,"","",null,"","",null,null,null,null,null,null,null,null,null,null,null,null,null,null,null,null,null,"","","","","","",{"$f":"IFERROR(IF(OR($AF109=0,BB$89=0),\"\",SQRT(($AI$107-$AI109)^2+($AJ$107-$AJ109)^2)),\"\")","v":""},{"$f":"IFERROR(IF(OR($AF109=0,BC$89=0),\"\",SQRT(($AI$108-$AI109)^2+($AJ$108-$AJ109)^2)),\"\")","v":""}]
[null,null,null,null,null,null,null,null,null,null,null,null,null,null,null,null,null,null,null,null,null,null,null,null,null,"","",null,"","",null,null,null,null,null,null,null,null,null,null,null,null,null,null,null,null,null,"","","","","","","",{"$f":"IFERROR(IF(OR($AF110=0,BC$89=0),\"\",SQRT(($AI$108-$AI110)^2+($AJ$108-$AJ110)^2)),\"\")","v":""},{"$f":"IFERROR(IF(OR($AF110=0,BD$89=0),\"\",SQRT(($AI$109-$AI110)^2+($AJ$109-$AJ110)^2)),\"\")","v":""}]
[null,null,null,null,null,null,null,null,null,null,null,null,null,null,null,null,null,null,null,null,null,null,null,null,null,{"$f":"+IF($AF111=1,(AC111+$AD$117)*$AD$119,\"\")","v":""},"",null,"","",null,null,null,null,null,null,null,null,null,null,null,null,null,null,null,null,null,"","","","","","","","",{"$f":"IFERROR(IF(OR($AF111=0,BD$89=0),\"\",SQRT(($AI$109-$AI111)^2+($AJ$109-$AJ111)^2)),\"\")","v":""},{"$f":"IFERROR(IF(OR($AF111=0,BE$89=0),\"\",SQRT(($AI$110-$AI111)^2+($AJ$110-$AJ111)^2)),\"\")","v":""}]
[null,null,null,null,null,null,null,null,null,null,null,null,null,null,null,null,null,null,null,null,null,null,null,null,null,"","",null,"","",null,null,null,null,null,null,null,null,null,null,null,null,null,null,null,null,null,"","","","","","","","","",{"$f":"IFERROR(IF(OR($AF112=0,BE$89=0),\"\",SQRT(($AI$110-$AI112)^2+($AJ$110-$AJ112)^2)),\"\")","v":""},{"$f":"IFERROR(IF(OR($AF112=0,BF$89=0),\"\",SQRT(($AI$111-$AI112)^2+($AJ$111-$AJ112)^2)),\"\")","v":""}]
[null,null,null,null,null,null,null,null,null,null,null,null,null,null,null,null,null,null,null,null,null,null,null,null,null,{"$f":"+IF($AF113=1,(AC113+$AD$117)*$AD$119,\"\")","v":""},{"$f":"+IF($AF113=1,(AD113+$AD$117)*$AD$119,\"\")","v":""},null,{"$f":"IF($AF113=1,AI113,\"\")","v":""},{"$f":"IF($AF113=1,AJ113,\"\")","v":""},null,null,null,null,null,null,null,null,null,null,null,null,null,null,null,null,null,"","","","","","","","","","",{"$f":"IFERROR(IF(OR($AF113=0,BF$89=0),\"\",SQRT(($AI$111-$AI113)^2+($AJ$111-$AJ113)^2)),\"\")","v":""},{"$f":"IFERROR(IF(OR($AF113=0,BG$89=0),\"\",SQRT(($AI$112-$AI113)^2+($AJ$112-$AJ113)^2)),\"\")","v":""}]
[null,null,null,null,null,null,null,null,null,null,null,null,null,null,null,null,null,null,null,null,null,null,null,null,null,"Min",{"$f":"MIN(Z90:AA112)","v":0.84224031945521494},null,"Min",{"$f":"MIN(AC90:AD112)","v":0},null,null,null,null,null,null,{"$f":"IF(AK89=1,SUM(AK90:AK113),\"\")","v":17.550953428135053},{"$f":"IF(AL89=1,SUM(AL90:AL113),\"\")","v":14.835692182742768},11.1489437720975,1.2337298789666633,0,"","","","","","",null,"","","","","","","","","","","",""]
[null,null,null,null,null,null,null,null,null,null,null,null,null,null,null,null,null,null,null,null,null,null,null,null,null,"Max",{"$f":"MAX(Z90:AA112)","v":8},null,"Max",{"$f":"MAX(AC90:AD112)","v":8.4984766404612735}]
[null,null,null,null,null,null,null,null,null,null,null,null,null,null,null,null,null,null,null,null,null,null,null,null,null,null,{"$f":"+AA115-AA114","v":7.1577596805447854},null,null,{"$f":"+AD115-AD114","v":8.4984766404612735}]
[null,null,null,null,null,null,null,null,null,null,null,null,null,null,null,null,null,null,null,null,null,null,null,null,null,null,null,null,"Down",{"$f":"1-AD114","v":1}]
[null,null,null,null,null,null,null,null,null,null,null,null,null,null,null,null,null,null,null,null,null,null,null,null,null,null,null,null,"Top",{"$f":"+AD117+AD115","v":9.4984766404612735}]
[null,null,null,null,null,null,null,null,null,null,null,null,null,null,null,null,null,null,null,null,null,null,null,null,null,null,null,null,"To 9",{"$f":"8/AD118","v":0.84224031945521494}]
[]
[]
[]
[]
[]
[]
[]
[]
[]
[]
[]
[]
[]
[]
[]
[]
[]
[]
[]
[]
[]
[]
[]
[]
[]
[]
[]
[]
[null,null,null,null,null,null,null,null,null,null,null,null,null,null,null,null,null,null,null,null,null,null,null,null,null,null,null,null,null,null,null,null,null,{"$f":"+AH90","v":"Coke"},null,null,{"$f":"IFERROR(AK90^2,\"\")","v":0},0,0,0,0,0,0,0,0,0,0]
[null,null,null,null,null,null,null,null,null,null,null,null,null,null,null,null,null,null,null,null,null,null,null,null,null,null,null,null,null,null,null,null,null,"Pepsi",null,null,{"$f":"IFERROR(AK91^2,\"\")","v":2.1668565792087264},0,0,0,0,0,0,0,0,0,0]
[null,null,null,null,null,null,null,null,null,null,null,null,null,null,null,null,null,null,null,null,null,null,null,null,null,null,null,null,null,null,null,null,null,"Sprite",null,null,{"$f":"IFERROR(AK92^2,\"\")","v":74.463589872051202},59.32224252029507,0,0,0,0,"",0,0,0,0]
[null,null,null,null,null,null,null,null,null,null,null,null,null,null,null,null,null,null,null,null,null,null,null,null,null,null,null,null,null,null,null,null,null,"Diet Coke",null,null,{"$f":"IFERROR(AK93^2,\"\")","v":17.573020234365817},17.26905163984766,30.281460191632309,0,0,0,0,0,0,0,0]
[null,null,null,null,null,null,null,null,null,null,null,null,null,null,null,null,null,null,null,null,null,null,null,null,null,null,null,null,null,null,null,null,null,"Pepsi Max",null,null,{"$f":"IFERROR(AK94^2,\"\")","v":10.612487643441035},8.8684479704368151,31.878270157415528,1.5220894142550976,0,0,0,0,0,0,0]
[null,null,null,null,null,null,null,null,null,null,null,null,null,null,null,null,null,null,null,null,null,null,null,null,null,null,null,null,null,null,null,null,null,"",null,null,{"$f":"IFERROR(AK95^2,\"\")","v":""},"","","","",0,0,0,0,0,0]
[null,null,null,null,null,null,null,null,null,null,null,null,null,null,null,null,null,null,null,null,null,null,null,null,null,null,null,null,null,null,null,null,null,"",null,null,{"$f":"IFERROR(AK96^2,\"\")","v":""},"","","","","",0,0,0,0,0]
[null,null,null,null,null,null,null,null,null,null,null,null,null,null,null,null,null,null,null,null,null,null,null,null,null,null,null,null,null,null,null,null,null,"",null,null,{"$f":"IFERROR(AK97^2,\"\")","v":""},"","","","","","",0,0,0,0]
[null,null,null,null,null,null,null,null,null,null,null,null,null,null,null,null,null,null,null,null,null,null,null,null,null,null,null,null,null,null,null,null,null,"",null,null,{"$f":"IFERROR(AK98^2,\"\")","v":""},"","","","","","","",0,0,0]
[null,null,null,null,null,null,null,null,null,null,null,null,null,null,null,null,null,null,null,null,null,null,null,null,null,null,null,null,null,null,null,null,null,"",null,null,{"$f":"IFERROR(AK99^2,\"\")","v":""},"","","","","","","","",0,0]
[null,null,null,null,null,null,null,null,null,null,null,null,null,null,null,null,null,null,null,null,null,null,null,null,null,null,null,null,null,null,null,null,null,"",null,null,{"$f":"IFERROR(AK100^2,\"\")","v":""},"","","","","","","","","",0]
[null,null,null,null,null,null,null,null,null,null,null,null,null,null,null,null,null,null,null,null,null,null,null,null,null,null,null,null,null,null,null,null,null,"",null,null,{"$f":"IFERROR(AK101^2,\"\")","v":""},"","","","","","","","","",""]
[]
[]
[]
[]
[]
[]
[]
[]
[]
[]
[]
[]
[null,null,null,null,null,null,null,null,null,null,null,null,null,null,null,null,null,null,null,null,null,null,null,null,null,null,null,null,null,null,null,null,null,{"$f":"SUM(AK172:AU172)","v":253.95751622294927},null,null,{"$f":"SUM(AK148:AK171)","v":104.81595432906678},{"$f":"SUM(AL148:AL171)","v":85.459742130579542},62.159730349047834,1.5220894142550976,0,0,0,0,0,0,0]
[]
[]
[null,null,null,null,null,null,null,null,null,null,null,null,null,null,null,null,null,null,null,null,null,null,null,null,null,null,null,null,null,null,null,null,null,{"$f":"+AH148","v":"Coke"},null,null,{"$f":"IFERROR((AK90-AI63)^2,\"\")","v":0},{"$f":"IFERROR((AL90-AJ63)^2,\"\")","v":0},{"$f":"IFERROR((AM90-AK63)^2,\"\")","v":0},{"$f":"IFERROR((AN90-AL63)^2,\"\")","v":0},{"$f":"IFERROR((AO90-AM63)^2,\"\")","v":0},{"$f":"IFERROR((AP90-AN63)^2,\"\")","v":0},{"$f":"IFERROR((AQ90-AO63)^2,\"\")","v":0},{"$f":"IFERROR((AR90-AP63)^2,\"\")","v":0},{"$f":"IFERROR((AS90-AQ63)^2,\"\")","v":0},{"$f":"IFERROR((AT90-AR63)^2,\"\")","v":0},{"$f":"IFERROR((AU90-AS63)^2,\"\")","v":0}]
[null,null,null,null,null,null,null,null,null,null,null,null,null,null,null,null,null,null,null,null,null,null,null,null,null,null,null,null,null,null,null,null,null,"Pepsi",null,null,{"$f":"IFERROR((AK91-AI64)^2,\"\")","v":0.22280727309394852},0,0,0,0,0,0,0,0,0,0]
[null,null,null,null,null,null,null,null,null,null,null,null,null,null,null,null,null,null,null,null,null,null,null,null,null,null,null,null,null,null,null,null,null,"Sprite",null,null,0.13747127461573036,0.49293512208429152,0,0,0,0,"",0,0,0,0]
[null,null,null,null,null,null,null,null,null,null,null,null,null,null,null,null,null,null,null,null,null,null,null,null,null,null,null,null,null,null,null,null,null,"Diet Coke",null,null,1.4209084256693267,0.71300317533691282,0.25286744964743002,0,0,0,0,0,0,0,0]
[null,null,null,null,null,null,null,null,null,null,null,null,null,null,null,null,null,null,null,null,null,null,null,null,null,null,null,null,null,null,null,null,null,"Pepsi Max",null,null,0.55103700883079965,0.22847821691077325,0.12525618262739513,2.6471683843942506E-4,0,0,0,0,0,0,0]
[null,null,null,null,null,null,null,null,null,null,null,null,null,null,null,null,null,null,null,null,null,null,null,null,null,null,null,null,null,null,null,null,null,"",null,null,"","","","","",0,0,0,0,0,0]
[null,null,null,null,null,null,null,null,null,null,null,null,null,null,null,null,null,null,null,null,null,null,null,null,null,null,null,null,null,null,null,null,null,"",null,null,"","","","","","",0,0,0,0,0]
[null,null,null,null,null,null,null,null,null,null,null,null,null,null,null,null,null,null,null,null,null,null,null,null,null,null,null,null,null,null,null,null,null,"",null,null,"","","","","","","",0,0,0,0]
[null,null,null,null,null,null,null,null,null,null,null,null,null,null,null,null,null,null,null,null,null,null,null,null,null,null,null,null,null,null,null,null,null,"",null,null,"","","","","","","","",0,0,0]
[null,null,null,null,null,null,null,null,null,null,null,null,null,null,null,null,null,null,null,null,null,null,null,null,null,null,null,null,null,null,null,null,null,"",null,null,"","","","","","","","","",0,0]
[null,null,null,null,null,null,null,null,null,null,null,null,null,null,null,null,null,null,null,null,null,null,null,null,null,null,null,null,null,null,null,null,null,"",null,null,"","","","","","","","","","",0]
[null,null,null,null,null,null,null,null,null,null,null,null,null,null,null,null,null,null,null,null,null,null,null,null,null,null,null,null,null,null,null,null,null,"",null,null,"","","","","","","","","","",""]
[]
[]
[]
[]
[]
[]
[]
[]
[]
[]
[]
[]
[null,null,null,null,null,null,null,null,null,null,null,null,null,null,null,null,null,null,null,null,null,null,null,null,null,null,null,null,null,null,null,null,null,{"$f":"SUM(AK199:BH199)","v":4.1450288456550473},null,null,{"$f":"SUM(AK175:AK198)","v":2.332223982209805},{"$f":"SUM(AL175:AL198)","v":1.4344165143319776},0.37812363227482515,2.6471683843942506E-4,0,0,0,0,0,0,0]
[]
[]
[null,null,null,null,null,null,null,null,null,null,null,null,null,null,null,null,null,null,null,null,null,null,null,null,null,null,null,null,null,null,null,null,null,{"$f":"SQRT(AH199/AH172)","v":0.12775656993241519},null,null,1,{"$f":"+AH175","v":"Coke"},{"$f":"+Z90","v":2.2787314809741246},{"$f":"+AA90","v":0.8754903862396789}]
[null,null,null,null,null,null,null,null,null,null,null,null,null,null,null,null,null,null,null,null,null,null,null,null,null,null,null,null,null,null,null,null,null,null,null,null,2,{"$f":"+AH176","v":"Pepsi"},{"$f":"+Z91","v":1.2221427470780009},1.5241201749575253]
[null,null,null,null,null,null,null,null,null,null,null,null,null,null,null,null,null,null,null,null,null,null,null,null,null,null,null,null,null,null,null,null,null,null,null,null,3,"Sprite",{"$f":"+Z92","v":0.84224031945521494},8]
[null,null,null,null,null,null,null,null,null,null,null,null,null,null,null,null,null,null,null,null,null,null,null,null,null,null,null,null,null,null,null,null,null,null,null,null,4,"Diet Coke",{"$f":"+Z93","v":3.4860922285287157},4.1933257533260235]
[null,null,null,null,null,null,null,null,null,null,null,null,null,null,null,null,null,null,null,null,null,null,null,null,null,null,null,null,null,null,null,null,null,null,null,null,5,"Pepsi Max",{"$f":"+Z94","v":2.6359184104126476},3.595891947060748]
[null,null,null,null,null,null,null,null,null,null,null,null,null,null,null,null,null,null,null,null,null,null,null,null,null,null,null,null,null,null,null,null,null,null,null,null,6,"",{"$f":"+Z95","v":""},""]
[null,null,null,null,null,null,null,null,null,null,null,null,null,null,null,null,null,null,null,null,null,null,null,null,null,null,null,null,null,null,null,null,null,null,null,null,7,"",{"$f":"+Z96","v":""},""]
[null,null,null,null,null,null,null,null,null,null,null,null,null,null,null,null,null,null,null,null,null,null,null,null,null,null,null,null,null,null,null,null,null,null,null,null,8,"",{"$f":"+Z97","v":""},""]
[null,null,null,null,null,null,null,null,null,null,null,null,null,null,null,null,null,null,null,null,null,null,null,null,null,null,null,null,null,null,null,null,null,null,null,null,9,"",{"$f":"+Z98","v":""},""]
[null,null,null,null,null,null,null,null,null,null,null,null,null,null,null,null,null,null,null,null,null,null,null,null,null,null,null,null,null,null,null,null,null,null,null,null,10,"",{"$f":"+Z99","v":""},""]
[null,null,null,null,null,null,null,null,null,null,null,null,null,null,null,null,null,null,null,null,null,null,null,null,null,null,null,null,null,null,null,null,null,null,null,null,11,"",{"$f":"+Z100","v":""},""]
[null,null,null,null,null,null,null,null,null,null,null,null,null,null,null,null,null,null,null,null,null,null,null,null,null,null,null,null,null,null,null,null,null,null,null,null,12,"",{"$f":"+Z101","v":""},""]
[null,null,null,null,null,null,null,null,null,null,null,null,null,null,null,null,null,null,null,null,null,null,null,null,null,null,null,null,null,null,null,null,null,null,null,null,null,null,null,{"$f":"+AA102","v":""}]
[null,null,null,null,null,null,null,null,null,null,null,null,null,null,null,null,null,null,null,null,null,null,null,null,null,null,null,null,null,null,null,null,null,null,null,null,null,null,null,{"$f":"+AA103","v":""}]
[null,null,null,null,null,null,null,null,null,null,null,null,null,null,null,null,null,null,null,null,null,null,null,null,null,null,null,null,null,null,null,null,null,null,null,null,null,null,null,{"$f":"+AA104","v":""}]
[null,null,null,null,null,null,null,null,null,null,null,null,null,null,null,null,null,null,null,null,null,null,null,null,null,null,null,null,null,null,null,null,null,null,null,null,null,null,null,{"$f":"+AA105","v":""}]
[null,null,null,null,null,null,null,null,null,null,null,null,null,null,null,null,null,null,null,null,null,null,null,null,null,null,null,null,null,null,null,null,null,null,null,null,null,null,null,{"$f":"+AA106","v":""}]
[null,null,null,null,null,null,null,null,null,null,null,null,null,null,null,null,null,null,null,null,null,null,null,null,null,null,null,null,null,null,null,null,null,null,null,null,null,null,null,{"$f":"+AA107","v":""}]
[null,null,null,null,null,null,null,null,null,null,null,null,null,null,null,null,null,null,null,null,null,null,null,null,null,null,null,null,null,null,null,null,null,null,null,null,null,null,null,{"$f":"+AA108","v":""}]
[null,null,null,null,null,null,null,null,null,null,null,null,null,null,null,null,null,null,null,null,null,null,null,null,null,null,null,null,null,null,null,null,null,null,null,null,null,null,null,{"$f":"+AA109","v":""}]
[null,null,null,null,null,null,null,null,null,null,null,null,null,null,null,null,null,null,null,null,null,null,null,null,null,null,null,null,null,null,null,null,null,null,null,null,null,null,null,{"$f":"+AA110","v":""}]
[null,null,null,null,null,null,null,null,null,null,null,null,null,null,null,null,null,null,null,null,null,null,null,null,null,null,null,null,null,null,null,null,null,null,null,null,null,null,null,{"$f":"+AA111","v":""}]
[null,null,null,null,null,null,null,null,null,null,null,null,null,null,null,null,null,null,null,null,null,null,null,null,null,null,null,null,null,null,null,null,null,null,null,null,null,null,null,{"$f":"+AA112","v":""}]
[null,null,null,null,null,null,null,null,null,null,null,null,null,null,null,null,null,null,null,null,null,null,null,null,null,null,null,null,null,null,null,null,null,null,null,null,null,null,null,{"$f":"+AA113","v":""}]